[Event "1000GM Spring Break Schev-D 2024"]
[Site "San Jose"]
[Date "2024.04.03"]
[Round "3.1"]
[White "Zhuge, Katherine"]
[Black "Dominguez Aguilar, Guillermo"]
[Result "0-1"]
[ECO "B38"]
[WhiteElo "1778"]
[BlackElo "2285"]
[Annotator "RC"]
[PlyCount "114"]
[EventDate "2024.03.28"]
[EventType "schev"]
[EventCountry "USA"]
[SourceTitle "playchess.com"]
[Source "ChessBase"]
[SourceQuality "1"]
[TimeControl "5400+30"]

1. e4 {[%emt 0:00:04]} c5 {[%emt 0:02:42]} 2. Nf3 {[%emt 0:00:12]} Nc6 {[%emt 0:00:55]} 3. c4 {[%emt 0:00:13]} g6 {[%emt 0:00:17]} 4. d4 {[%emt 0:00:34]} cxd4 {[%emt 0:00:15]} 5. Nxd4 {[%emt 0:00:07]} Bg7 {[%emt 0:01:52]} 6. Be3 {[%emt 0:00:15]} Nf6 {[%emt 0:00:10]} 7. Nc3 {[%emt 0:00:08]} d6 {[%emt 0:00:05]} 8. f3 {[%emt 0:01:51]} O-O {[%emt 0:02:45]} 9. Qd2 {[%emt 0:01:51]} Ne5 {[%emt 0:01:40]} 10. Be2 {[%emt 0:00:13]} Bd7 {[%emt 0:00:18]} 11. O-O {[%emt 0:00:29]} Rc8 {[%emt 0:00:07]} 12. b3 {[%emt 0:00:32]} a6 {[%emt 0:00:37]} 13. Rfc1 {[%emt 0:00:34]} Re8 {[%emt 0:02:26]} 14. Rab1 {[%emt 0:00:56]} h5 {[%emt 0:00:22]} 15. Bf1 {[%emt 0:02:12]} e6 {[%emt 0:04:32]} 16. Kh1 {[%emt 0:04:56]} Qe7 {[%emt 0:01:28]} 17. Nd1 {[%emt 0:21:39]} d5 {[%emt 0:00:45]} 18. exd5 {[%emt 0:01:53]} exd5 {[%emt 0:00:22]} 19. Bg5 {[%emt 0:00:55]} Qd6 {[%emt 0:07:50]} 20. Ne3 {[%emt 0:06:14]} dxc4 {[%emt 0:02:27]} 21. bxc4 {[%emt 0:55:12]} Neg4 {[%emt 0:11:20]} 22. Nxg4 {[%emt 0:00:00]} hxg4 {[%emt 0:00:15]} 23. Bf4 {[%emt 0:00:00]} Qc5 {[%emt 0:01:49]} 24. Nb3 {[%emt 0:00:00]} Qh5 {[%emt 0:00:55]} 25. fxg4 {[%emt 0:00:00]} Bxg4 {[%emt 0:00:12]} 26. Re1 {[%emt 0:00:00]} Ne4 {[%emt 0:00:34]} 27. Qc2 {[%emt 0:00:00]} Qf5 {[%emt 0:04:17]} 28. Bd3 {[%emt 0:00:00]} Qxf4 {[%emt 0:00:23]} 29. Rxe4 {[%emt 0:00:00]} Rxe4 {[%emt 0:00:10]} 30. Bxe4 {[%emt 0:00:00]} Be5 {[%emt 0:01:06]} 31. g3 {[%emt 0:00:00]} Bf3+ {[%emt 0:04:48]} 32. Bxf3 {[%emt 0:00:00]} Qxf3+ {[%emt 0:00:05]} 33. Qg2 {[%emt 0:00:00]} Qxg2+ {[%emt 0:00:17]} 34. Kxg2 {[%emt 0:00:00]} Rxc4 {[%emt 0:00:02]} 35. Na5 {[%emt 0:00:00]} Rc2+ {[%emt 0:00:15]} 36. Kh3 {[%emt 0:00:00]} b5 {[%emt 0:00:08]} 37. Rb3 {[%emt 0:00:33]} Rxa2 {[%emt 0:01:18]} 38. Nc6 {[%emt 0:00:11]} Bd6 {[%emt 0:00:47]} 39. Rd3 {[%emt 0:00:50]} Bc5 {[%emt 0:00:15]} 40. Rd8+ {[%emt 0:00:56]} Kg7 {[%emt 0:00:27]} 41. Ra8 {[%emt 0:00:25]} f5 {[%emt 0:04:16]} 42. Nb8 {[%emt 0:01:39]} a5 {[%emt 0:00:20]} 43. Nc6 {[%emt 0:01:52]} a4 {[%emt 0:00:49]} 44. Rb8 {[%emt 0:01:26]} Rb2 {[%emt 0:00:21]} 45. Nd8 {[%emt 0:00:46]} Bg1 {[%emt 0:01:04]} 46. g4 {[%emt 0:01:21]} Kf6 {[%emt 0:03:29]} 47. Rb7 {[%emt 0:01:03]} f4 {[%emt 0:02:24]} 48. Rf7+ {[%emt 0:01:16]} Ke5 {[%emt 0:00:02]} 49. g5 {[%emt 0:00:13]} Rxh2+ {[%emt 0:01:18]} 50. Kg4 {[%emt 0:00:07]} Rg2+ {[%emt 0:00:23]} 51. Kf3 {[%emt 0:00:34]} Rg3+ {[%emt 0:00:31]} 52. Ke2 {[%emt 0:00:16]} Rxg5 {[%emt 0:00:28]} 53. Rb7 {[%emt 0:00:24]} Ke4 {[%emt 0:00:34]} 54. Re7+ {[%emt 0:00:48]} Re5 {[%emt 0:00:19]} 55. Rd7 {[%emt 0:00:27]} f3+ {[%emt 0:00:21]} 56. Kf1 {[%emt 0:00:11]} Bc5 {[%emt 0:00:31]} 57. Nf7 {[%emt 0:00:28]} Rh5 {[%emt 0:00:28]} 0-1

[Event "1000GM Spring Break Schev-D 2024"]
[Site "San Jose"]
[Date "2024.04.03"]
[Round "3.3"]
[White "Gongora Montes, Benjamin"]
[Black "Stevens, Adam B"]
[Result "1-0"]
[ECO "D05"]
[WhiteElo "2092"]
[BlackElo "1941"]
[Annotator "RC"]
[PlyCount "63"]
[EventDate "2024.03.28"]
[EventType "schev"]
[EventCountry "USA"]
[SourceTitle "playchess.com"]
[Source "ChessBase"]
[SourceQuality "1"]
[TimeControl "5400+30"]

1. d4 {[%emt 0:00:03]} Nf6 {[%emt 0:00:03]} 2. Nf3 {[%emt 0:00:10]} d5 {[%emt 0:00:03]} 3. e3 {[%emt 0:00:11]} c5 {[%emt 0:01:10]} 4. c3 {[%emt 0:00:11]} e6 {[%emt 0:01:25]} 5. Bd3 {[%emt 0:00:11]} Nc6 {[%emt 0:01:08]} 6. Nbd2 {[%emt 0:00:10]} Be7 {[%emt 0:00:54]} 7. O-O {[%emt 0:00:10]} O-O {[%emt 0:01:03]} 8. Ne5 {[%emt 0:01:13]} Nxe5 {[%emt 0:06:35]} 9. dxe5 {[%emt 0:00:10]} Nd7 {[%emt 0:00:27]} 10. f4 {[%emt 0:00:16]} f5 {[%emt 0:01:30]} 11. exf6 {[%emt 0:02:43]} Nxf6 {[%emt 0:01:03]} 12. e4 {[%emt 0:00:10]} Qb6 {[%emt 0:04:02]} 13. c4 {[%emt 0:01:12]} dxe4 {[%emt 0:01:08]} 14. Nxe4 {[%emt 0:00:11]} Rd8 {[%emt 0:01:31]} 15. Qe2 {[%emt 0:04:49]} g6 {[%emt 0:06:25]} 16. Ng5 {[%emt 0:01:41]} Bf8 {[%emt 0:06:29]} 17. b3 {[%emt 0:02:09]} Qd6 {[%emt 0:00:28]} 18. Rd1 {[%emt 0:00:10]} Bg7 {[%emt 0:03:08]} 19. Bb2 {[%emt 0:00:11]} Qxf4 {[%emt 0:06:19]} 20. Nxe6 {[%emt 0:24:01]} Bxe6 {[%emt 0:02:21]} 21. Qxe6+ {[%emt 0:00:23]} Kh8 {[%emt 0:00:11]} 22. Qe7 {[%emt 0:05:50]} b6 {[%emt 0:06:40]} 23. Bxg6 {[%emt 0:05:00]} Rxd1+ {[%emt 0:04:31]} 24. Rxd1 {[%emt 0:00:12]} hxg6 {[%emt 0:01:49]} 25. Rf1 {[%emt 0:00:40]} Qe4 {[%emt 0:03:49]} 26. Bxf6 {[%emt 0:00:35]} Qxe7 {[%emt 0:00:11]} 27. Bxe7 {[%emt 0:00:14]} Bd4+ {[%emt 0:00:33]} 28. Kh1 {[%emt 0:00:10]} Kg7 {[%emt 0:00:45]} 29. g4 {[%emt 0:00:47]} Re8 {[%emt 0:00:15]} 30. Re1 {[%emt 0:00:44]} Rh8 {[%emt 0:04:41]} 31. Kg2 {[%emt 0:00:14]} Kf7 {[%emt 0:01:21]} 32. Bg5 {[%emt 0:51:39]} 1-0

[Event "1000GM Spring Break Schev-D 2024"]
[Site "San Jose"]
[Date "2024.04.03"]
[Round "3.4"]
[White "Varela Velazquez, Carlos Francisco"]
[Black "Jin, Austin"]
[Result "1-0"]
[ECO "A14"]
[WhiteElo "2084"]
[BlackElo "1966"]
[Annotator "RC"]
[PlyCount "49"]
[EventDate "2024.03.28"]
[EventType "schev"]
[EventCountry "USA"]
[SourceTitle "playchess.com"]
[Source "ChessBase"]
[SourceQuality "1"]
[TimeControl "5400+30"]

1. Nf3 {[%emt 0:00:01]} d5 {[%emt 0:01:11]} 2. g3 {[%emt 0:00:11]} Nf6 {[%emt 1:30:19]} 3. Bg2 {[%emt 0:00:05]} e6 {[%emt 0:00:00]} 4. O-O {[%emt 0:00:17]} Be7 {[%emt 0:00:00]} 5. c4 {[%emt 0:00:05]} O-O {[%emt 0:00:00]} 6. b3 {[%emt 0:00:12]} c6 {[%emt 0:00:00]} 7. Bb2 {[%emt 0:01:11]} b6 {[%emt 0:00:00]} 8. d3 {[%emt 0:01:07]} Bb7 {[%emt 0:03:00]} 9. cxd5 {[%emt 0:16:09]} Nxd5 {[%emt 0:00:00]} 10. Nbd2 {[%emt 0:00:29]} Bf6 {[%emt 0:00:00]} 11. d4 {[%emt 0:00:29]} Be7 {[%emt 0:00:00]} 12. Rc1 {[%emt 0:00:50]} Nd7 {[%emt 0:00:00]} 13. a3 {[%emt 0:01:48]} c5 {[%emt 0:00:00]} 14. dxc5 {[%emt 0:03:58]} Nxc5 {[%emt 0:00:00]} 15. b4 {[%emt 0:00:16]} Nd7 {[%emt 0:00:00]} 16. Nd4 {[%emt 0:00:24]} Rc8 {[%emt 0:00:00]} 17. Nc4 {[%emt 0:28:20]} a6 {[%emt 0:00:00]} 18. Nf5 {[%emt 0:06:55]} exf5 {[%emt 0:00:00]} 19. Bxd5 {[%emt 0:00:11]} Bxd5 {[%emt 0:00:00]} 20. Qxd5 {[%emt 0:00:03]} Nf6 {[%emt 0:00:00]} 21. Qxf5 {[%emt 0:00:30]} Qd5 {[%emt 0:06:30]} 22. Ne3 {[%emt 0:02:55]} Qb7 {[%emt 0:00:00]} 23. Bxf6 {[%emt 0:04:40]} gxf6 {[%emt 0:00:00]} 24. Nd5 {[%emt 0:01:14]} Rcd8 {[%emt 0:00:00]} 25. e4 {[%emt 0:03:11]} 1-0

[Event "1000GM Spring Break Schev-D 2024"]
[Site "San Jose"]
[Date "2024.04.03"]
[Round "3.5"]
[White "Karthi, Jashith"]
[Black "Rodi, Luis Ernesto"]
[Result "1/2-1/2"]
[ECO "B06"]
[WhiteElo "2075"]
[BlackElo "2211"]
[Annotator "RC"]
[PlyCount "48"]
[EventDate "2024.03.28"]
[EventType "schev"]
[EventCountry "USA"]
[SourceTitle "playchess.com"]
[Source "ChessBase"]
[SourceQuality "1"]
[TimeControl "5400+30"]

1. d4 {[%emt 0:06:05]} d6 {[%emt 0:00:57]} 2. Nf3 {[%emt 0:00:32]} g6 {[%emt 0:01:10]} 3. e4 {[%emt 0:00:09]} Bg7 {[%emt 0:00:14]} 4. Bc4 {[%emt 0:00:08]} Nf6 {[%emt 0:00:27]} 5. Qe2 {[%emt 0:00:19]} c6 {[%emt 0:00:41]} 6. e5 {[%emt 0:01:24]} dxe5 {[%emt 0:00:10]} 7. dxe5 {[%emt 0:00:20]} Nd5 {[%emt 0:00:10]} 8. O-O {[%emt 0:01:39]} Qc7 {[%emt 0:09:12]} 9. h3 {[%emt 0:02:41]} Be6 {[%emt 0:01:39]} 10. Re1 {[%emt 0:04:00]} Nd7 {[%emt 0:00:35]} 11. a4 {[%emt 0:12:28]} O-O {[%emt 0:02:45]} 12. Nbd2 {[%emt 0:01:50]} Nf4 {[%emt 0:02:05]} 13. Qe4 {[%emt 0:02:31]} Bxc4 {[%emt 0:00:10]} 14. Nxc4 {[%emt 0:01:02]} Ne6 {[%emt 0:00:18]} 15. Ng5 {[%emt 0:01:54]} Nxg5 {[%emt 0:08:55]} 16. Bxg5 {[%emt 0:00:17]} Nb6 {[%emt 0:00:25]} 17. Nxb6 {[%emt 0:03:11]} axb6 {[%emt 0:00:11]} 18. Bf4 {[%emt 0:01:56]} Qd7 {[%emt 0:02:02]} 19. Rad1 {[%emt 0:01:08]} Qe6 {[%emt 0:00:11]} 20. b3 {[%emt 0:00:14]} Rfd8 {[%emt 0:02:43]} 21. Be3 {[%emt 0:01:36]} Bxe5 {[%emt 0:14:06]} 22. Rxd8+ {[%emt 0:02:52]} Rxd8 {[%emt 0:00:02]} 23. Bxb6 {[%emt 0:02:07]} Rd1 {[%emt 0:00:35]} 24. Qe2 {[%emt 0:02:24]} Rxe1+ {[%emt 0:52:47]} 1/2-1/2

[Event "1000GM Spring Break Schev-D 2024"]
[Site "San Jose"]
[Date "2024.04.04"]
[Round "4.1"]
[White "Solis Castro, Angel Alejan"]
[Black "Zhuge, Katherine"]
[Result "1-0"]
[ECO "A05"]
[WhiteElo "2066"]
[BlackElo "1778"]
[Annotator "RC"]
[PlyCount "67"]
[EventDate "2024.03.28"]
[EventType "schev"]
[EventCountry "USA"]
[SourceTitle "playchess.com"]
[Source "ChessBase"]
[SourceQuality "1"]
[TimeControl "5400+30"]

1. Nf3 {[%emt 0:00:36]} d5 {[%emt 0:00:06]} 2. g3 {[%emt 0:01:29]} Nf6 {[%emt 0:00:39]} 3. Bg2 {[%emt 0:01:15]} e6 {[%emt 1:31:15]} 4. O-O {[%emt 0:01:45]} Be7 {[%emt 0:00:00]} 5. d3 {[%emt 0:01:12]} O-O {[%emt 0:00:00]} 6. Nbd2 {[%emt 0:01:54]} b6 {[%emt 0:00:00]} 7. b3 {[%emt 0:02:54]} Bb7 {[%emt 0:00:00]} 8. Bb2 {[%emt 0:01:05]} c5 {[%emt 0:00:00]} 9. e3 {[%emt 0:02:26]} Nc6 {[%emt 0:00:00]} 10. a3 {[%emt 0:02:03]} Rc8 {[%emt 0:00:00]} 11. c4 {[%emt 0:02:37]} Qc7 {[%emt 0:00:00]} 12. Rc1 {[%emt 0:05:08]} Qb8 {[%emt 0:00:00]} 13. Qc2 {[%emt 0:01:22]} Rfd8 {[%emt 0:00:00]} 14. Qb1 {[%emt 0:06:02]} Qa8 {[%emt 0:00:00]} 15. cxd5 {[%emt 0:02:12]} Nxd5 {[%emt 0:06:00]} 16. Ne4 {[%emt 0:04:09]} f5 {[%emt 0:00:00]} 17. Ned2 {[%emt 0:06:39]} Nf6 {[%emt 0:00:00]} 18. Rfd1 {[%emt 0:05:08]} Rd7 {[%emt 0:00:00]} 19. Bf1 {[%emt 0:02:06]} Rcd8 {[%emt 0:00:00]} 20. Ng5 {[%emt 0:05:45]} e5 {[%emt 0:00:00]} 21. d4 {[%emt 0:03:45]} e4 {[%emt 0:00:00]} 22. dxc5 {[%emt 0:04:13]} Rxd2 {[%emt 0:00:00]} 23. Bc4+ {[%emt 0:00:09]} R2d5 {[%emt 0:00:00]} 24. Bxf6 {[%emt 0:00:27]} Bxf6 {[%emt 0:00:00]} 25. Rxd5 {[%emt 0:00:14]} Rxd5 {[%emt 0:00:00]} 26. Bxd5+ {[%emt 0:00:03]} Kf8 {[%emt 0:00:00]} 27. Nxh7+ {[%emt 0:00:24]} Ke7 {[%emt 0:00:00]} 28. Nxf6 {[%emt 0:00:22]} gxf6 {[%emt 0:00:00]} 29. cxb6 {[%emt 0:01:22]} axb6 {[%emt 0:00:00]} 30. Qc2 {[%emt 0:00:31]} Qxa3 {[%emt 0:00:00]} 31. Bxc6 {[%emt 0:00:17]} Bxc6 {[%emt 0:00:00]} 32. Qxc6 {[%emt 0:00:07]} Qxb3 {[%emt 0:00:00]} 33. Qb7+ {[%emt 0:00:17]} Kf8 {[%emt 0:00:00]} 34. Rc8# {[%emt 0:00:36]} 1-0

[Event "1000GM Spring Break Schev-D 2024"]
[Site "San Jose"]
[Date "2024.04.04"]
[Round "4.3"]
[White "Stevens, Adam B"]
[Black "Varela Velazquez, Carlos Francisco"]
[Result "0-1"]
[ECO "E15"]
[WhiteElo "1941"]
[BlackElo "2084"]
[Annotator "RC"]
[PlyCount "46"]
[EventDate "2024.03.28"]
[EventType "schev"]
[EventCountry "USA"]
[SourceTitle "playchess.com"]
[Source "ChessBase"]
[SourceQuality "1"]
[TimeControl "5400+30"]

1. d4 {[%emt 0:00:02]} Nf6 {[%emt 0:02:17]} 2. c4 {[%emt 0:00:34]} e6 {[%emt 0:00:18]} 3. Nf3 {[%emt 0:00:33]} b6 {[%emt 0:02:42]} 4. g3 {[%emt 0:01:44]} Ba6 {[%emt 0:00:28]} 5. b3 {[%emt 0:00:39]} Bb4+ {[%emt 0:00:15]} 6. Bd2 {[%emt 0:00:46]} Be7 {[%emt 0:00:16]} 7. Nc3 {[%emt 0:00:31]} d5 {[%emt 0:02:13]} 8. cxd5 {[%emt 1:29:41]} exd5 {[%emt 0:00:07]} 9. Bg2 {[%emt 0:00:00]} O-O {[%emt 0:01:19]} 10. O-O {[%emt 0:00:00]} Bb7 {[%emt 0:08:24]} 11. Bf4 {[%emt 0:00:00]} a6 {[%emt 0:09:50]} 12. Ne5 {[%emt 0:00:00]} Nbd7 {[%emt 0:01:11]} 13. Rc1 {[%emt 0:00:00]} Re8 {[%emt 0:10:20]} 14. Nxd7 {[%emt 0:00:00]} Qxd7 {[%emt 0:01:02]} 15. Bxc7 {[%emt 0:00:00]} Qxc7 {[%emt 0:11:36]} 16. Nxd5 {[%emt 0:00:00]} Qb8 {[%emt 0:02:09]} 17. Nc7 {[%emt 0:00:00]} Bxg2 {[%emt 0:00:16]} 18. Kxg2 {[%emt 0:00:00]} Rd8 {[%emt 0:00:35]} 19. Nxa8 {[%emt 0:00:00]} Qxa8+ {[%emt 0:00:02]} 20. Kg1 {[%emt 0:00:00]} h5 {[%emt 0:04:03]} 21. h4 {[%emt 0:00:00]} Ng4 {[%emt 0:05:23]} 22. Qd3 {[%emt 0:00:00]} Bf6 {[%emt 0:00:57]} 23. e3 {[%emt 0:00:00]} Ne5 {[%emt 0:00:30]} 0-1

[Event "1000GM Spring Break Schev-D 2024"]
[Site "San Jose"]
[Date "2024.04.04"]
[Round "4.4"]
[White "Jin, Austin"]
[Black "Rodi, Luis Ernesto"]
[Result "0-1"]
[ECO "C54"]
[WhiteElo "1966"]
[BlackElo "2211"]
[Annotator "RC"]
[PlyCount "84"]
[EventDate "2024.03.28"]
[EventType "schev"]
[EventCountry "USA"]
[SourceTitle "playchess.com"]
[Source "ChessBase"]
[SourceQuality "1"]
[TimeControl "5400+30"]

1. e4 {[%emt 0:00:19]} e5 {[%emt 0:09:24]} 2. Nf3 {[%emt 0:00:09]} Nc6 {[%emt 0:00:06]} 3. Bc4 {[%emt 0:00:20]} Bc5 {[%emt 0:00:07]} 4. d3 {[%emt 0:00:13]} Nf6 {[%emt 0:00:06]} 5. O-O {[%emt 0:00:14]} d6 {[%emt 0:00:04]} 6. c3 {[%emt 0:00:18]} a6 {[%emt 0:00:04]} 7. Bb3 {[%emt 0:00:16]} Ba7 {[%emt 0:00:06]} 8. Nbd2 {[%emt 0:00:15]} h6 {[%emt 0:00:06]} 9. Re1 {[%emt 0:01:43]} g5 {[%emt 0:00:09]} 10. Nf1 {[%emt 0:01:24]} g4 {[%emt 0:00:09]} 11. N3d2 {[%emt 0:02:10]} Nh5 {[%emt 0:00:35]} 12. Nc4 {[%emt 0:03:54]} Qf6 {[%emt 0:00:12]} 13. Be3 {[%emt 0:01:24]} Nf4 {[%emt 0:00:08]} 14. Bxa7 {[%emt 0:03:23]} Nxa7 {[%emt 0:00:05]} 15. Nce3 {[%emt 0:02:23]} Nc6 {[%emt 0:00:09]} 16. Ng3 {[%emt 0:12:14]} Bd7 {[%emt 0:04:20]} 17. Nd5 {[%emt 0:04:36]} Nxd5 {[%emt 0:01:31]} 18. exd5 {[%emt 0:00:44]} Ne7 {[%emt 0:00:08]} 19. d4 {[%emt 0:01:03]} Ng6 {[%emt 0:10:20]} 20. dxe5 {[%emt 0:02:13]} Nxe5 {[%emt 0:00:07]} 21. Qd4 {[%emt 0:02:06]} b6 {[%emt 0:00:38]} 22. a4 {[%emt 0:08:47]} a5 {[%emt 0:01:38]} 23. Ne4 {[%emt 0:01:58]} Qg7 {[%emt 0:02:10]} 24. Kh1 {[%emt 0:01:34]} f5 {[%emt 0:02:52]} 25. Nd2 {[%emt 0:01:46]} O-O {[%emt 0:00:25]} 26. Nc4 {[%emt 0:01:43]} Ng6 {[%emt 0:01:03]} 27. Qxg7+ {[%emt 0:01:22]} Kxg7 {[%emt 0:00:21]} 28. g3 {[%emt 0:01:25]} h5 {[%emt 0:00:48]} 29. Bc2 {[%emt 0:00:58]} Rfe8 {[%emt 0:01:17]} 30. Kg1 {[%emt 0:01:29]} Kf6 {[%emt 1:06:22]} 31. f3 {[%emt 0:43:37]} gxf3 {[%emt 0:00:00]} 32. Kf2 {[%emt 0:00:00]} f4 33. Kxf3 {[%emt 0:00:00]} Bg4+ {[%emt 0:01:30]} 34. Kf2 {[%emt 0:01:30]} Bf5 {[%emt 0:00:30]} 35. Bxf5 {[%emt 0:00:00]} Kxf5 {[%emt 0:00:00]} 36. Kf3 {[%emt 0:00:00]} fxg3 {[%emt 0:00:00]} 37. hxg3 {[%emt 0:00:00]} Kg5 {[%emt 0:00:00]} 38. Rad1 {[%emt 0:00:00]} Rf8+ {[%emt 0:00:00]} 39. Kg2 {[%emt 0:00:00]} h4 {[%emt 0:00:00]} 40. Rd3 {[%emt 0:00:00]} h3+ {[%emt 0:00:00]} 41. Kg1 {[%emt 0:00:00]} Rf5 {[%emt 0:00:00]} 42. Rf1 {[%emt 0:00:00]} h2+ {[%emt 0:00:00]} 0-1

[Event "1000GM Spring Break Schev-D 2024"]
[Site "San Jose"]
[Date "2024.04.04"]
[Round "4.5"]
[White "Dominguez Aguilar, Guillermo"]
[Black "Karthi, Jashith"]
[Result "1/2-1/2"]
[ECO "A21"]
[WhiteElo "2285"]
[BlackElo "2075"]
[Annotator "RC"]
[PlyCount "68"]
[EventDate "2024.03.28"]
[EventType "schev"]
[EventCountry "USA"]
[SourceTitle "playchess.com"]
[Source "ChessBase"]
[SourceQuality "1"]
[TimeControl "5400+30"]

1. c4 {[%emt 0:00:18]} e5 {[%emt 0:00:08]} 2. Nc3 {[%emt 0:00:21]} Bb4 {[%emt 0:00:08]} 3. Nd5 {[%emt 0:00:37]} Be7 {[%emt 0:00:09]} 4. g3 {[%emt 0:01:57]} c6 {[%emt 0:00:43]} 5. Nxe7 {[%emt 0:00:25]} Nxe7 {[%emt 0:00:13]} 6. Bg2 {[%emt 0:00:23]} d5 {[%emt 0:00:15]} 7. b3 {[%emt 0:03:06]} dxc4 {[%emt 0:05:38]} 8. Bb2 {[%emt 0:00:27]} cxb3 {[%emt 0:02:05]} 9. Bxe5 {[%emt 0:00:30]} bxa2 {[%emt 0:00:48]} 10. Bxg7 {[%emt 0:01:24]} Rg8 {[%emt 0:00:16]} 11. Bc3 {[%emt 0:01:44]} Be6 {[%emt 0:01:33]} 12. Qc2 {[%emt 0:00:13]} Qb6 {[%emt 1:24:34]} 13. Nf3 c5 {[%emt 0:00:00]} 14. O-O {[%emt 0:01:03]} Nd7 {[%emt 0:01:00]} 15. Rxa2 Bxa2 16. Qxa2 Nc6 {[%emt 0:00:00]} 17. Nh4 {[%emt 0:02:16]} Qc7 {[%emt 0:00:00]} 18. Nf5 {[%emt 0:02:26]} Rg6 {[%emt 0:00:00]} 19. Rb1 {[%emt 0:01:27]} Nb6 {[%emt 0:00:00]} 20. Qa3 {[%emt 0:02:34]} O-O-O {[%emt 0:00:00]} 21. Qxc5 {[%emt 0:00:28]} Na4 {[%emt 0:00:00]} 22. Qa3 {[%emt 0:03:26]} Nxc3 {[%emt 0:00:00]} 23. dxc3 {[%emt 0:04:19]} Kb8 {[%emt 0:00:00]} 24. Nd4 {[%emt 0:02:40]} Nxd4 {[%emt 0:00:00]} 25. Rxb7+ {[%emt 0:00:27]} Qxb7 {[%emt 0:00:00]} 26. Bxb7 Nxe2+ {[%emt 0:00:00]} 27. Kf1 {[%emt 0:00:34]} Nxg3+ {[%emt 0:00:00]} 28. hxg3 {[%emt 0:00:06]} Kxb7 {[%emt 0:00:00]} 29. Qe7+ {[%emt 0:00:11]} Kc8 {[%emt 0:00:00]} 30. Qxa7 {[%emt 0:00:10]} Rd7 {[%emt 0:00:00]} 31. Qa8+ {[%emt 0:00:37]} Kc7 {[%emt 0:00:00]} 32. Qe4 {[%emt 0:00:32]} Rc6 {[%emt 0:00:00]} 33. Kg2 {[%emt 0:00:16]} Kb7 {[%emt 0:00:00]} 34. Qb4+ {[%emt 0:01:51]} Kc8 {[%emt 0:00:00]} 1/2-1/2

[Event "1000GM Spring Break Schev-D 2024"]
[Site "San Jose"]
[Date "2024.04.04"]
[Round "5.1"]
[White "Zhuge, Katherine"]
[Black "Gongora Montes, Benjamin"]
[Result "1/2-1/2"]
[ECO "C01"]
[WhiteElo "1778"]
[BlackElo "2092"]
[Annotator "RC"]
[PlyCount "58"]
[EventDate "2024.03.28"]
[EventType "schev"]
[EventCountry "USA"]
[SourceTitle "playchess.com"]
[Source "ChessBase"]
[SourceQuality "1"]
[TimeControl "5400+30"]

1. e4 {[%emt 0:00:03]} e6 {[%emt 0:00:32]} 2. d4 {[%emt 0:00:13]} d5 {[%emt 0:00:12]} 3. exd5 {[%emt 0:00:07]} exd5 {[%emt 0:00:11]} 4. Nf3 {[%emt 0:00:16]} Bd6 {[%emt 0:00:13]} 5. Bd3 {[%emt 0:00:06]} Nc6 {[%emt 0:00:24]} 6. O-O {[%emt 0:00:50]} Bg4 {[%emt 0:00:23]} 7. Re1+ {[%emt 0:00:32]} Nge7 {[%emt 0:00:11]} 8. c3 {[%emt 0:00:21]} Qd7 {[%emt 0:00:09]} 9. Nbd2 {[%emt 0:01:28]} h5 {[%emt 0:00:55]} 10. b4 {[%emt 0:05:03]} h4 {[%emt 0:00:33]} 11. b5 {[%emt 0:06:39]} Na5 {[%emt 0:00:18]} 12. Qa4 {[%emt 0:03:53]} b6 {[%emt 0:00:45]} 13. Ba3 {[%emt 0:02:41]} f6 {[%emt 0:00:40]} 14. Bxd6 {[%emt 0:06:00]} Qxd6 {[%emt 0:00:26]} 15. Re3 {[%emt 0:05:00]} Kf7 {[%emt 0:08:08]} 16. Rae1 {[%emt 0:02:25]} Rae8 {[%emt 0:04:50]} 17. Qc2 {[%emt 0:00:57]} g5 {[%emt 0:00:47]} 18. Bg6+ {[%emt 0:06:04]} Nxg6 {[%emt 0:00:18]} 19. Rxe8 {[%emt 0:00:07]} Rxe8 {[%emt 0:00:06]} 20. Rxe8 {[%emt 0:00:06]} Kxe8 {[%emt 0:00:09]} 21. Qxg6+ {[%emt 0:00:06]} Kd7 {[%emt 0:00:38]} 22. h3 {[%emt 0:01:22]} Bxf3 {[%emt 0:00:27]} 23. Nxf3 {[%emt 0:00:19]} Qe6 {[%emt 0:08:35]} 24. Nh2 {[%emt 0:09:04]} Nc4 {[%emt 0:01:13]} 25. Ng4 {[%emt 0:01:43]} Ke7 {[%emt 0:00:43]} 26. Qg7+ {[%emt 0:01:26]} Qf7 {[%emt 0:00:15]} 27. Qh8 {[%emt 0:01:53]} Qe6 {[%emt 0:02:24]} 28. Qg7+ {[%emt 0:00:07]} Qf7 {[%emt 0:00:11]} 29. Qh8 {[%emt 0:00:05]} Qe6 {[%emt 0:01:45]} 1/2-1/2